bitfinex-derivatives/quotes_BNBF0:USTF0_20250603
["timestamp","ask_amount","ask_price","bid_price","bid_amount"]
[1748985857797,1.01653894,659.09,658.98,0.30349934]
[1748985857999,1.01653894,659.08,658.98,0.30349934]
[1748985858211,1.13083992,659.27,658.98,0.30349934]
[1748985858397,1.01657785,659.26,658.98,0.30349934]
[1748985858601,1.01657785,659.25,658.98,0.30349934]
[1748985858798,1.01657785,659.24,658.98,0.30349934]
[1748985859102,1.01657785,659.23,658.98,0.30349934]
[1748985859310,1.01657785,659.22,658.98,0.30349934]
[1748985859501,1.01657785,659.21,658.98,0.30349934]
[1748985859698,1.01657785,659.2,658.98,0.30349934]
[1748985859901,1.01657785,659.19,658.98,0.30349934]
[1748985860101,1.01657785,659.18,658.98,0.30349934]
[1748985860302,1.01657785,659.17,658.98,0.30349934]
[1748985860502,1.01657785,659.16,658.98,0.30349934]
[1748985860699,1.13083992,659.28,658.98,0.30349934]
[1748985860700,1.01657785,659.15,658.98,0.30349934]
[1748985860999,1.01657785,659.14,658.98,0.30349934]
[1748985861204,1.01657785,659.13,658.98,0.30349934]
[1748985861398,1.01657785,659.12,658.98,0.30349934]
[1748985861606,1.01657785,659.11,658.98,0.30349934]
[1748985861804,1.01657785,659.1,658.98,0.30349934]
[1748985861998,1.01657785,659.09,658.98,0.30349934]
[1748985862199,1.01657785,659.08,658.98,0.30349934]
[1748985862503,1.13083992,659.28,658.98,0.30349934]
[1748985862703,1.01685756,659.27,658.98,0.30349934]
[1748985862901,1.01685756,659.26,658.98,0.30349934]
[1748985863203,1.01685756,659.25,658.98,0.30349934]
[1748985863519,1.01691633,659.24,658.98,0.30349934]
[1748985863704,1.01691633,659.23,658.98,0.30349934]
[1748985863907,1.01691633,659.22,658.98,0.30349934]
[1748985864106,1.01691633,659.21,658.98,0.30349934]
[1748985864305,1.01691633,659.2,658.98,0.30349934]
[1748985864506,1.01691633,659.19,658.98,0.30349934]
[1748985864704,1.01691633,659.18,658.98,0.30349934]
[1748985864905,1.01691633,659.17,658.98,0.30349934]
[1748985865109,1.01691633,659.16,658.98,0.30349934]
[1748985865307,1.01691633,659.15,658.98,0.30349934]
[1748985865509,1.50305369,659.42,658.98,0.30349934]
[1748985865702,3.75798396,660.03,658.98,0.30349934]
[1748985866111,0.2639493,660.82,658.98,0.30349934]
[1748985866679,1.13149972,659.29,658.98,0.30349934]
[1748985866807,1.01693314,659.28,658.98,0.30349934]
[1748985867003,1.01693314,659.27,658.98,0.30349934]
[1748985868703,1.01693314,659.19,658.98,0.30349934]
[1748985868908,1.01693314,659.18,658.98,0.30349934]
[1748985869109,1.01693314,659.17,658.98,0.30349934]
[1748985869309,1.13149972,659.28,658.98,0.30349934]
[1748985869310,1.01693314,659.16,658.98,0.30349934]
[1748985869609,1.01693314,659.15,658.98,0.30349934]
[1748985869812,1.01693314,659.14,658.98,0.30349934]
[1748985870009,1.01693314,659.13,658.98,0.30349934]
[1748985870210,1.01693314,659.12,658.98,0.30349934]
[1748985870410,1.01693314,659.11,658.98,0.30349934]
[1748985870612,1.01693314,659.1,658.98,0.30349934]
[1748985870810,1.01693314,659.09,658.98,0.30349934]
[1748985871012,1.01693314,659.08,658.98,0.30349934]
[1748985871212,1.01693314,659.07,658.98,0.30349934]
[1748985871411,1.13149972,659.28,658.98,0.30349934]
[1748985871612,1.01737139,659.27,658.98,0.30349934]
[1748985871914,1.01737139,659.26,658.98,0.30349934]
[1748985872106,1.01737139,659.25,658.98,0.30349934]
[1748985872308,1.01737139,659.24,658.98,0.30349934]
[1748985872511,1.01737139,659.23,658.98,0.30349934]
[1748985872706,1.01737139,659.22,658.98,0.30349934]
[1748985872911,1.01737139,659.21,658.98,0.30349934]
[1748985873113,1.01737139,659.2,658.98,0.30349934]
[1748985873313,1.01737139,659.19,658.98,0.30349934]
[1748985873512,3.77166576,659.99,658.98,0.30349934]
[1748985873513,1.01737139,659.18,658.98,0.30349934]
[1748985873718,1.01737139,659.17,658.98,0.30349934]
[1748985873915,1.01737139,659.16,658.98,0.30349934]
[1748985874215,1.01737139,659.15,658.98,0.30349934]
[1748985874409,1.01737139,659.14,658.98,0.30349934]
[1748985874610,1.13149972,659.32,658.98,0.30349934]
[1748985874611,1.01737139,659.13,658.98,0.30349934]
[1748985874811,1.01737139,659.12,658.98,0.30349934]
[1748985875010,1.01737139,659.11,658.98,0.30349934]
[1748985875209,1.01737139,659.1,658.98,0.30349934]
[1748985875408,1.13149972,659.32,658.98,0.30349934]
[1748985875613,1.01692172,659.31,658.98,0.30349934]
[1748985875810,1.01692172,659.3,658.98,0.30349934]
[1748985876015,1.01692172,659.29,658.98,0.30349934]
[1748985876211,1.01692172,659.28,658.98,0.30349934]
[1748985876413,1.01692172,659.27,658.98,0.30349934]
[1748985876717,1.01692172,659.26,658.98,0.30349934]
[1748985876915,1.01692172,659.25,658.98,0.30349934]
[1748985877116,1.01692172,659.24,658.98,0.30349934]
[1748985877313,1.01692172,659.23,658.98,0.30349934]
[1748985877512,1.01692172,659.22,658.98,0.30349934]
[1748985877717,1.01692172,659.21,658.98,0.30349934]
[1748985877917,1.01683018,659.2,658.98,0.30349934]
[1748985878117,1.01683018,659.19,658.98,0.30349934]
[1748985878318,1.01683018,659.18,658.98,0.30349934]
[1748985878513,1.01683018,659.17,658.98,0.30349934]
[1748985878714,1.01683018,659.16,658.98,0.30349934]
[1748985878914,1.01683018,659.15,658.98,0.30349934]
[1748985879114,1.01683018,659.14,658.98,0.30349934]
[1748985879313,1.01683018,659.13,658.98,0.30349934]
[1748985879619,1.01671143,659.12,658.98,0.30349934]
[1748985879818,1.01671143,659.11,658.98,0.30349934]
[1748985880016,1.01671143,659.1,658.98,0.30349934]
[1748985880214,1.01671143,659.09,658.98,0.30349934]
[1748985880413,1.13123273,659.36,658.98,0.30349934]
[1748985880613,1.01667791,659.35,658.98,0.30349934]
[1748985880819,1.01667791,659.34,658.98,0.30349934]
[1748985881012,1.01667791,659.33,658.98,0.30349934]
[1748985881212,1.01667791,659.32,658.98,0.30349934]
[1748985881420,1.01667791,659.31,658.98,0.30349934]
[1748985881618,1.01667791,659.3,658.98,0.30349934]
[1748985881915,1.01667791,659.29,658.98,0.30349934]
[1748985882121,1.01667791,659.28,658.98,0.30349934]
[1748985882320,1.01667791,659.27,658.98,0.30349934]
[1748985882522,1.01667791,659.26,658.98,0.30349934]
[1748985882823,1.01667791,659.25,658.98,0.30349934]
[1748985883122,1.01667791,659.24,658.98,0.30349934]
[1748985883418,1.01667791,659.23,658.98,0.30349934]
[1748985883623,1.01663294,659.22,658.98,0.30349934]
[1748985883824,1.01663294,659.21,658.98,0.30349934]
[1748985884023,1.01663294,659.2,658.98,0.30349934]
[1748985884223,1.01663294,659.19,658.98,0.30349934]
[1748985884423,1.01663294,659.18,658.98,0.30349934]
[1748985884617,1.01663294,659.17,658.98,0.30349934]
[1748985884819,1.01663294,659.16,658.98,0.30349934]
[1748985885021,1.01663294,659.15,658.98,0.30349934]
[1748985885223,1.01663294,659.14,658.98,0.30349934]
[1748985885422,1.01663294,659.13,658.98,0.30349934]
[1748985885620,1.01663294,659.12,658.98,0.30349934]
[1748985885924,1.01663294,659.11,658.98,0.30349934]
[1748985886120,1.01663294,659.1,658.98,0.30349934]
[1748985886323,1.13108035,659.36,658.98,0.30349934]
[1748985886520,1.01653175,659.35,658.98,0.30349934]
[1748985886724,1.01653175,659.34,658.98,0.30349934]
[1748985886924,1.01653175,659.33,658.98,0.30349934]
[1748985887124,1.01653175,659.32,658.98,0.30349934]
[1748985887321,1.01653175,659.31,658.98,0.30349934]
[1748985887524,1.01651174,659.3,658.98,0.30349934]
[1748985887722,1.01651174,659.29,658.98,0.30349934]
[1748985887923,1.01651174,659.28,658.98,0.30349934]
[1748985888222,1.01651174,659.27,658.98,0.30349934]
[1748985888522,1.01651174,659.26,658.98,0.30349934]
[1748985888725,1.01651174,659.25,658.98,0.30349934]
[1748985888924,1.01651174,659.24,658.98,0.30349934]
[1748985889123,1.01651174,659.23,658.98,0.30349934]
[1748985889328,1.01651174,659.22,658.98,0.30349934]
[1748985889525,1.01651174,659.21,658.98,0.30349934]
[1748985889729,1.01651174,659.2,658.98,0.30349934]
[1748985889930,1.01651174,659.19,658.98,0.30349934]
[1748985890131,1.01651174,659.18,658.98,0.30349934]
[1748985890327,1.01651174,659.17,658.98,0.30349934]
[1748985890523,1.01651174,659.16,658.98,0.30349934]
[1748985890723,1.01651174,659.15,658.98,0.30349934]
[1748985891027,1.01651174,659.14,658.98,0.30349934]
[1748985891222,1.01651174,659.13,658.98,0.30349934]
[1748985891425,1.01651174,659.12,658.98,0.30349934]
[1748985891631,1.01554923,659.11,658.98,0.30349934]
[1748985891831,1.13079972,659.34,658.98,0.30349934]
[1748985892130,1.01554863,659.33,658.98,0.30349934]
[1748985892332,1.01554863,659.32,658.98,0.30349934]
[1748985892526,1.01554863,659.31,658.98,0.30349934]
[1748985892729,1.01554863,659.3,658.98,0.30349934]
[1748985892930,1.01554863,659.29,658.98,0.30349934]
[1748985893131,1.01554863,659.28,658.98,0.30349934]
[1748985893333,1.01554863,659.27,658.98,0.30349934]
[1748985893527,1.01554863,659.26,658.98,0.30349934]
[1748985893726,1.01554863,659.25,658.98,0.30349934]
[1748985893927,1.01554863,659.24,658.98,0.30349934]
[1748985894127,1.01554863,659.23,658.98,0.30349934]
[1748985894325,1.01554863,659.22,658.98,0.30349934]
[1748985894531,1.01554863,659.21,658.98,0.30349934]
[1748985894833,1.13079972,659.44,658.98,0.30349934]
[1748985895033,2.14592321,659.43,658.98,0.30349934]
[1748985895225,1.5086663,659.55,658.98,0.30349934]
[1748985895428,1.13049495,659.43,658.98,0.30349934]
[1748985895627,1.0151036,659.42,658.98,0.30349934]
[1748985895830,1.0151036,659.41,658.98,0.30349934]
[1748985896031,1.0151036,659.4,658.98,0.30349934]
[1748985896227,1.0151036,659.39,658.98,0.30349934]
[1748985896432,1.0151036,659.38,658.98,0.30349934]
[1748985896633,1.0151036,659.37,658.98,0.30349934]
[1748985896833,1.0151036,659.36,658.98,0.30349934]
[1748985897131,1.0151036,659.35,658.98,0.30349934]
[1748985897329,1.0151036,659.34,658.98,0.30349934]
[1748985897533,1.0151036,659.33,658.98,0.30349934]
[1748985897732,1.0151036,659.32,658.98,0.30349934]
[1748985898032,1.0151036,659.31,658.98,0.30349934]
[1748985898234,1.0151036,659.3,658.98,0.30349934]
[1748985898434,1.0151036,659.29,658.98,0.30349934]
[1748985898639,1.0151036,659.28,658.98,0.30349934]
[1748985898840,1.0151036,659.27,658.98,0.30349934]
[1748985899135,1.0151036,659.26,658.98,0.30349934]
[1748985899335,1.01535602,659.25,658.98,0.30349934]
[1748985899539,1.01535602,659.24,658.98,0.30349934]
[1748985899739,1.01535602,659.23,658.98,0.30349934]
[1748985899940,1.01535602,659.22,658.98,0.30349934]
[1748985900241,1.12991035,659.45,658.98,0.30349934]
[1748985900440,1.01528599,659.44,658.98,0.30349934]
[1748985900740,1.01528599,659.43,658.98,0.30349934]
[1748985900941,1.01528599,659.42,658.98,0.30349934]
[1748985901142,1.01528599,659.41,658.98,0.30349934]
[1748985901341,1.01528599,659.4,658.98,0.30349934]
[1748985901543,1.01528599,659.39,658.98,0.30349934]
[1748985901744,1.01447911,659.38,658.98,0.30349934]
[1748985901941,1.01447911,659.37,658.98,0.30349934]
[1748985902140,1.01447911,659.36,658.98,0.30349934]
[1748985902343,1.01447911,659.35,658.98,0.30349934]
[1748985902642,1.01447911,659.34,658.98,0.30349934]
[1748985902837,1.01447911,659.33,658.98,0.30349934]
[1748985903143,1.01447911,659.32,658.98,0.30349934]
[1748985903346,1.01447911,659.31,658.98,0.30349934]
[1748985903638,1.01447911,659.3,658.98,0.30349934]
[1748985903843,1.01447911,659.29,658.98,0.30349934]
[1748985904039,2.26299945,659.82,658.98,0.30349934]
[1748985904344,3.77166576,660.6,658.98,0.30349934]
[1748985905040,1.12926424,659.42,658.98,0.30349934]
[1748985905247,1.01483235,659.41,658.98,0.30349934]
[1748985905439,1.01483235,659.4,658.98,0.30349934]
[1748985905739,1.01483235,659.39,658.98,0.30349934]
[1748985905941,1.01483235,659.38,658.98,0.30349934]
[1748985906243,1.01483235,659.37,658.98,0.30349934]
[1748985906440,1.01483235,659.36,658.98,0.30349934]
[1748985906640,1.01483235,659.35,658.98,0.30349934]
[1748985906842,1.01483235,659.34,658.98,0.30349934]
[1748985907040,1.01483235,659.33,658.98,0.30349934]
[1748985907241,1.01483235,659.32,658.98,0.30349934]
[1748985907444,1.01483235,659.31,658.98,0.30349934]
[1748985907644,1.01483235,659.3,658.98,0.30349934]
[1748985907840,1.01483235,659.29,658.98,0.30349934]
[1748985908041,1.01483235,659.28,658.98,0.30349934]
[1748985908243,1.01483235,659.27,658.98,0.30349934]
[1748985908542,3.76421413,660.53,658.98,0.30349934]
[1748985909354,1.12885045,659.41,658.98,0.30349934]
[1748985909651,1.01424389,659.4,658.98,0.30349934]
[1748985909849,1.01424389,659.39,658.98,0.30349934]
[1748985910049,1.01418943,659.38,658.98,0.30349934]
[1748985910249,1.01418943,659.37,658.98,0.30349934]
[1748985910451,1.01418943,659.36,658.98,0.30349934]
[1748985910653,1.01418943,659.35,658.98,0.30349934]
[1748985910847,1.01418943,659.34,658.98,0.30349934]
[1748985911047,1.01418943,659.33,658.98,0.30349934]
[1748985911347,1.01418943,659.32,658.98,0.30349934]
[1748985911651,1.01418943,659.31,658.98,0.30349934]
[1748985911852,1.01418943,659.3,658.98,0.30349934]
[1748985912153,1.01418943,659.29,658.98,0.30349934]
[1748985912346,1.01418943,659.28,658.98,0.30349934]
[1748985912547,1.01418943,659.27,658.98,0.30349934]
[1748985912849,1.01418943,659.26,658.98,0.30349934]
[1748985913052,1.01418943,659.25,658.98,0.30349934]
[1748985913250,1.01418943,659.24,658.98,0.30349934]
[1748985913451,1.01418943,659.23,658.98,0.30349934]
[1748985913648,1.01418943,659.22,658.98,0.30349934]
[1748985913851,1.01418943,659.21,658.98,0.30349934]
[1748985914053,1.01405934,659.2,658.98,0.30349934]
[1748985914353,1.01405934,659.19,658.98,0.30349934]
[1748985914553,1.01405934,659.18,658.98,0.30349934]
[1748985914748,1.01405934,659.17,658.98,0.30349934]
[1748985914955,1.01405934,659.16,658.98,0.30349934]
[1748985915254,1.01405934,659.15,658.98,0.30349934]
[1748985915454,1.01405934,659.14,658.98,0.30349934]
[1748985915647,1.01405934,659.13,658.98,0.30349934]
[1748985915849,1.01405934,659.12,658.98,0.30349934]
[1748985916051,1.01405934,659.11,658.98,0.30349934]
[1748985916251,1.01405934,659.1,658.98,0.30349934]
[1748985916447,1.12870546,659.34,658.98,0.30349934]
[1748985916657,1.01406978,659.33,658.98,0.30349934]
[1748985916854,1.01406978,659.32,658.98,0.30349934]
[1748985917054,1.01406978,659.31,658.98,0.30349934]
[1748985917255,1.01406978,659.3,658.98,0.30349934]
[1748985917451,1.01406978,659.29,658.98,0.30349934]
[1748985917650,1.01406978,659.28,658.98,0.30349934]
[1748985917851,1.01406978,659.27,658.98,0.30349934]
[1748985918057,1.01400803,659.26,658.98,0.30349934]
[1748985918356,1.01400803,659.25,658.98,0.30349934]
[1748985918559,1.01400803,659.24,658.98,0.30349934]
[1748985918756,1.12864832,659.33,658.98,0.30349934]
[1748985918757,1.01400803,659.23,658.98,0.30349934]
[1748985918956,1.01400803,659.22,658.98,0.30349934]
[1748985919151,1.01400803,659.21,658.98,0.30349934]
[1748985919356,1.01400803,659.2,658.98,0.30349934]
[1748985919557,1.01400803,659.19,658.98,0.30349934]
[1748985919760,1.01400803,659.18,658.98,0.30349934]
[1748985919954,1.01400803,659.17,658.98,0.30349934]
[1748985920151,1.01400803,659.16,658.98,0.30349934]
[1748985920359,1.01400803,659.15,658.98,0.30349934]
[1748985920558,1.01400803,659.14,658.98,0.30349934]
[1748985920759,1.01400803,659.13,658.98,0.30349934]
[1748985921059,1.01400803,659.12,658.98,0.30349934]
[1748985921251,1.01400803,659.11,658.98,0.30349934]
[1748985921456,1.01400803,659.1,658.98,0.30349934]
[1748985921753,1.01400803,659.09,658.98,0.30349934]
[1748985921959,1.12864832,659.34,658.98,0.30349934]
[1748985922155,1.01366827,659.33,658.98,0.30349934]
[1748985922355,1.01366827,659.32,658.98,0.30349934]
[1748985922560,1.01366827,659.31,658.98,0.30349934]
[1748985922753,1.01366827,659.3,658.98,0.30349934]
[1748985922954,1.01366827,659.29,658.98,0.30349934]
[1748985923154,1.01366827,659.28,658.98,0.30349934]
[1748985923357,1.12864832,659.26,658.98,0.30349934]
[1748985923558,1.01366827,659.25,658.98,0.30349934]
[1748985923753,1.01366827,659.24,658.98,0.30349934]
[1748985923957,1.01366827,659.23,658.98,0.30349934]
[1748985924154,1.12864832,659.26,658.98,0.30349934]
[1748985924155,1.01366827,659.22,658.98,0.30349934]
[1748985924361,1.01366827,659.21,658.98,0.30349934]
[1748985924653,1.01366827,659.2,658.98,0.30349934]
[1748985924855,1.01366827,659.19,658.98,0.30349934]
[1748985925158,1.01366827,659.18,658.98,0.30349934]
[1748985925354,1.01366827,659.17,658.98,0.30349934]
[1748985925558,1.01366827,659.16,658.98,0.30349934]
[1748985925762,1.01261796,659.15,658.98,0.30349934]
[1748985925957,1.01261796,659.14,658.98,0.30349934]
[1748985926261,1.01261796,659.13,658.98,0.30349934]
[1748985926454,1.01261796,659.12,658.98,0.30349934]
[1748985926658,1.01261796,659.11,658.98,0.30349934]
[1748985926855,1.01261796,659.1,658.98,0.30349934]
[1748985927060,1.01261796,659.09,658.98,0.30349934]
[1748985927257,1.01261796,659.08,658.98,0.30349934]
[1748985927561,1.01261796,659.07,658.98,0.30349934]
[1748985927764,1.01261796,659.06,658.98,0.30349934]
[1748985927968,1.01261796,659.05,658.98,0.30349934]
[1748985928158,1.01261796,659.04,658.98,0.30349934]
[1748985928357,1.01200118,659.03,658.98,0.30349934]
[1748985928561,1.12769463,659.27,658.98,0.30349934]
[1748985928863,1.01201731,659.26,658.98,0.30349934]
[1748985929056,1.01201731,659.25,658.98,0.30349934]
[1748985929258,1.01201731,659.24,658.98,0.30349934]
[1748985929461,1.01201731,659.23,658.98,0.30349934]
[1748985929662,1.00661261,659.22,658.98,0.30349934]
[1748985929863,1.00661261,659.21,658.98,0.30349934]
[1748985930064,1.00661261,659.2,658.98,0.30349934]
[1748985930266,1.00661261,659.19,658.98,0.30349934]
[1748985930463,1.00661261,659.18,658.98,0.30349934]
[1748985930662,1.00661261,659.17,658.98,0.30349934]
[1748985930862,1.00661261,659.16,658.98,0.30349934]
[1748985931061,1.00661261,659.15,658.98,0.30349934]
[1748985931264,1.00661261,659.14,658.98,0.30349934]
[1748985931560,1.00661261,659.13,658.98,0.30349934]
[1748985931766,3.76283485,660.12,658.98,0.30349934]
[1748985931767,1.00661261,659.12,658.98,0.30349934]
[1748985931962,1.00661261,659.11,658.98,0.30349934]
[1748985932160,1.00661261,659.1,658.98,0.30349934]
[1748985932364,1.00661261,659.09,658.98,0.30349934]
[1748985932563,1.00661261,659.08,658.98,0.30349934]
[1748985932767,1.00661261,659.07,658.98,0.30349934]
[1748985932968,1.00661261,659.06,658.98,0.30349934]
[1748985933168,1.12703427,659.3,658.98,0.30349934]
[1748985933464,1.00658989,659.29,658.98,0.30349934]
[1748985933669,1.006503,659.28,658.98,0.30349934]
[1748985933872,1.006503,659.27,658.98,0.30349934]
[1748985934074,1.12657275,659.29,658.98,0.30349934]
[1748985934075,1.006503,659.26,658.98,0.30349934]
[1748985934266,1.006503,659.25,658.98,0.30349934]
[1748985934468,1.006503,659.24,658.98,0.30349934]
[1748985934673,1.006503,659.23,658.98,0.30349934]
[1748985934867,1.006503,659.22,658.98,0.30349934]
[1748985935176,1.006503,659.21,658.98,0.30349934]
[1748985935366,1.006503,659.2,658.98,0.30349934]
[1748985935672,3.76283485,660.46,658.98,0.30349934]
[1748985935673,1.006503,659.19,658.98,0.30349934]
[1748985935972,1.006503,659.18,658.98,0.30349934]
[1748985936268,1.006503,659.17,658.98,0.30349934]
[1748985936471,1.006503,659.16,658.98,0.30349934]
[1748985936668,1.006503,659.15,658.98,0.30349934]
[1748985936873,1.006503,659.14,658.98,0.30349934]
[1748985937171,1.006503,659.13,658.98,0.30349934]
[1748985937372,1.006503,659.12,658.98,0.30349934]
[1748985937567,1.006503,659.11,658.98,0.30349934]
[1748985937771,1.006503,659.1,658.98,0.30349934]
[1748985938073,1.00718752,659.09,658.98,0.30349934]
[1748985938274,1.00718752,659.08,658.98,0.30349934]
[1748985938574,1.1261988,659.4,658.98,0.30349934]
[1748985938771,1.00717721,659.39,658.98,0.30349934]
[1748985938972,1.00717721,659.38,658.98,0.30349934]
[1748985939174,1.00717721,659.37,658.98,0.30349934]
[1748985939370,1.00717721,659.36,658.98,0.30349934]
[1748985939676,1.00717721,659.35,658.98,0.30349934]
[1748985939976,1.00717721,659.34,658.98,0.30349934]
[1748985940170,1.00717721,659.33,658.98,0.30349934]
[1748985940374,1.00717721,659.32,658.98,0.30349934]
[1748985940573,1.00717721,659.31,658.98,0.30349934]
[1748985940772,1.00717721,659.3,658.98,0.30349934]
[1748985940971,1.00717721,659.29,658.98,0.30349934]
[1748985941170,1.00717721,659.28,658.98,0.30349934]
[1748985941372,1.00761362,659.27,658.98,0.30349934]
[1748985941576,1.00761362,659.26,658.98,0.30349934]
[1748985941777,1.00761362,659.25,658.98,0.30349934]
[1748985941975,1.00761362,659.24,658.98,0.30349934]
[1748985942177,1.00761362,659.23,658.98,0.30349934]
[1748985942377,1.00761362,659.22,658.98,0.30349934]
[1748985942577,1.00761362,659.21,658.98,0.30349934]
[1748985942879,1.00761362,659.2,658.98,0.30349934]
[1748985943078,1.00761362,659.19,658.98,0.30349934]
[1748985943278,1.00761362,659.18,658.98,0.30349934]
[1748985943581,1.00761362,659.17,658.98,0.30349934]
[1748985943775,1.00761362,659.16,658.98,0.30349934]
[1748985943973,1.00761362,659.15,658.98,0.30349934]
[1748985944172,1.00761362,659.14,658.98,0.30349934]
[1748985944375,1.00761362,659.13,658.98,0.30349934]
[1748985944570,1.00761362,659.12,658.98,0.30349934]
[1748985944775,1.00761362,659.11,658.98,0.30349934]
[1748985944973,1.00761362,659.1,658.98,0.30349934]
[1748985945277,1.50513394,659.51,658.98,0.30349934]
[1748985945474,1.12620515,659.36,658.98,0.30349934]
[1748985945678,1.00782593,659.35,658.98,0.30349934]
[1748985945875,1.00782593,659.34,658.98,0.30349934]
[1748985946077,1.00782593,659.33,658.98,0.30349934]
[1748985946272,1.00782593,659.32,658.98,0.30349934]
[1748985946478,1.00782593,659.31,658.98,0.30349934]
[1748985946673,1.00782593,659.3,658.98,0.30349934]
[1748985946879,1.00782593,659.29,658.98,0.30349934]
[1748985947078,1.00782593,659.28,658.98,0.30349934]
[1748985947278,1.00782593,659.27,658.98,0.30349934]
[1748985947579,1.00782593,659.26,658.98,0.30349934]
[1748985947779,1.00782593,659.25,658.98,0.30349934]
[1748985947979,1.00782593,659.24,658.98,0.30349934]
[1748985948180,1.00782593,659.23,658.98,0.30349934]
[1748985948381,1.00782593,659.22,658.98,0.30349934]
[1748985948578,1.00782593,659.21,658.98,0.30349934]
[1748985948779,1.00782593,659.2,658.98,0.30349934]
[1748985948977,1.00782593,659.19,658.98,0.30349934]
[1748985949280,1.00775998,659.18,658.98,0.30349934]
[1748985949482,1.00775998,659.17,658.98,0.30349934]
[1748985949682,1.00775998,659.16,658.98,0.30349934]
[1748985949881,1.00775998,659.15,658.98,0.30349934]
[1748985950082,1.00775998,659.14,658.98,0.30349934]
[1748985950382,1.00775998,659.13,658.98,0.30349934]
[1748985950582,1.00775998,659.12,658.98,0.30349934]
[1748985950877,1.12626301,659.35,658.98,0.30349934]
[1748985950878,1.00775998,659.11,658.98,0.30349934]
[1748985951081,1.12626301,659.35,658.98,0.30349934]
[1748985951282,1.00780523,659.34,658.98,0.30349934]
[1748985951477,1.00780523,659.33,658.98,0.30349934]
[1748985951683,2.13406824,659.32,658.98,0.30349934]
[1748985951879,1.12626301,659.29,658.98,0.30349934]
[1748985952079,2.13406824,659.28,658.98,0.30349934]
[1748985952279,1.00780523,659.27,658.98,0.30349934]
[1748985952485,1.00780523,659.26,658.98,0.30349934]
[1748985952685,1.00780523,659.25,658.98,0.30349934]
[1748985952985,1.12626301,659.28,658.98,0.30349934]
[1748985952986,1.00780523,659.24,658.98,0.30349934]
[1748985953186,1.00773675,659.23,658.98,0.30349934]
[1748985953386,1.00773675,659.22,658.98,0.30349934]
[1748985953688,1.00773675,659.21,658.98,0.30349934]
[1748985953885,1.00773675,659.2,658.98,0.30349934]
[1748985954187,1.00773675,659.19,658.98,0.30349934]
[1748985954485,1.00773675,659.18,658.98,0.30349934]
[1748985954684,1.00773675,659.17,658.98,0.30349934]
[1748985954882,1.00773675,659.16,658.98,0.30349934]
[1748985955082,1.00773675,659.15,658.98,0.30349934]
[1748985955281,1.00773675,659.14,658.98,0.30349934]
[1748985955479,1.00773675,659.13,658.98,0.30349934]
[1748985955684,1.00773675,659.12,658.98,0.30349934]
[1748985955883,1.00773675,659.11,658.98,0.30349934]
[1748985956084,1.00773675,659.1,658.98,0.30349934]
[1748985956382,1.00773675,659.09,658.98,0.30349934]
[1748985956582,1.00773675,659.08,658.98,0.30349934]
[1748985956788,1.12625387,659.24,658.98,0.30349934]
[1748985956789,1.00773675,659.07,658.98,0.30349934]
[1748985956984,1.00773675,659.06,658.98,0.30349934]
[1748985957286,1.00773675,659.05,658.98,0.30349934]
[1748985957585,1.00773675,659.04,658.98,0.30349934]
[1748985957885,1.12625387,659.23,658.98,0.30349934]
[1748985958086,1.00879284,659.22,658.98,0.30349934]
[1748985958287,1.00879284,659.21,658.98,0.30349934]
[1748985958586,1.00879284,659.2,658.98,0.30349934]
[1748985958788,1.00879284,659.19,658.98,0.30349934]
[1748985958987,1.00879284,659.18,658.98,0.30349934]
[1748985959187,1.00879284,659.17,658.98,0.30349934]
[1748985959387,1.12625387,659.22,658.98,0.30349934]
[1748985959388,1.00879284,659.16,658.98,0.30349934]
[1748985959585,1.00879284,659.15,658.98,0.30349934]
[1748985959786,1.00879284,659.14,658.98,0.30349934]
[1748985959985,1.00879284,659.13,658.98,0.30349934]
[1748985960185,1.00879284,659.12,658.98,0.30349934]
[1748985960387,1.00879284,659.11,658.98,0.30349934]
[1748985960587,1.00879284,659.1,658.98,0.30349934]
[1748985960783,1.00902633,659.09,658.98,0.30349934]
[1748985961091,1.00902633,659.08,658.98,0.30349934]
[1748985961284,1.00902633,659.07,658.98,0.30349934]
[1748985961483,1.00902633,659.06,658.98,0.30349934]
[1748985961683,1.00902633,659.05,658.98,0.30349934]
[1748985961890,1.00902633,659.04,658.98,0.30349934]
[1748985962191,1.00902633,659.03,658.98,0.30349934]
[1748985962394,1.00902633,659.02,658.98,0.30349934]
[1748985962586,1.12797777,659.22,658.98,0.30349934]
[1748985962786,1.0090345,659.21,658.98,0.30349934]
[1748985962987,1.0090345,659.2,658.98,0.30349934]
[1748985963192,1.0090345,659.19,658.98,0.30349934]
[1748985963387,1.0090345,659.18,658.98,0.30349934]
[1748985963590,1.00902908,659.17,658.98,0.30349934]
[1748985963788,1.00902908,659.16,658.98,0.30349934]
[1748985963991,1.00902908,659.15,658.98,0.30349934]
[1748985964194,1.00902908,659.14,658.98,0.30349934]
[1748985964493,1.00902908,659.13,658.98,0.30349934]
[1748985964696,1.00902908,659.12,658.98,0.30349934]
[1748985964888,1.00902908,659.11,658.98,0.30349934]
[1748985965092,1.00902908,659.1,658.98,0.30349934]
[1748985965293,1.00902908,659.09,658.98,0.30349934]
[1748985965493,1.00902908,659.08,658.98,0.30349934]
[1748985965690,1.00902908,659.07,658.98,0.30349934]
[1748985965888,1.00902908,659.06,658.98,0.30349934]